bitfinex-derivatives/quotes_ETHF0:USTF0_20250518
["timestamp","ask_amount","ask_price","bid_price","bid_amount"]
[1747539300335,0.80713,2477.1,2477.0,1.36093086]
[1747539301238,3.86513,2477.1,2477.0,1.36093086]
[1747539301741,3.058,2477.1,2477.0,2.16810086]
[1747539302033,3.058,2477.1,2477.0,5.80717]
[1747539302237,4.01477,2477.6,2477.4,0.80701]
[1747539302537,4.01477,2477.6,2477.5,2.7253]
[1747539302837,3.2078,2477.6,2477.5,3.5323]
[1747539303036,4.01477,2477.6,2477.5,3.5323]
[1747539303237,4.01477,2477.6,2477.5,2.7253]
[1747539303438,0.80697,2477.6,2477.5,2.7253]
[1747539304038,0.80697,2477.6,2477.5,4.08749941]
[1747539304241,3.86497,2477.6,2477.5,4.89449941]
[1747539304536,3.058,2477.6,2477.5,4.89449941]
[1747539304940,3.86497,2477.6,2477.5,4.08749941]
[1747539305132,0.80697,2477.6,2477.5,4.89449941]
[1747539305441,0.80697,2477.6,2477.5,4.08749941]
[1747539306139,3.86497,2477.6,2477.5,4.08749941]
[1747539307141,3.86497,2477.6,2477.5,2.7253]
[1747539307343,3.058,2477.6,2477.5,3.5323]
[1747539307638,3.86497,2477.6,2477.5,4.89217637]
[1747539308136,0.80697,2477.6,2477.5,4.89217637]
[1747539309438,0.80697,2477.6,2477.5,4.08517637]
[1747539310039,0.80697,2477.6,2477.5,4.89217637]
[1747539310242,0.80696,2477.7,2477.6,0.80696]
[1747539310643,0.80697,2477.6,2477.5,4.89216637]
[1747539310842,0.80697,2477.6,2477.5,4.08517637]
[1747539311142,3.058,2477.6,2477.5,4.89217637]
[1747539312145,0.80692,2477.8,2477.7,0.80694]
[1747539312443,0.80694,2477.7,2477.6,0.80695]
[1747539313045,0.80694,2477.7,2477.6,2.16682637]
[1747539313446,0.80694,2477.7,2477.6,1.35987637]
[1747539314547,0.80693,2477.8,2477.7,0.80693]
[1747539315850,0.80693,2477.8,2477.7,2.16680637]
[1747539316749,0.80691,2477.8,2477.7,2.16679637]
[1747539317450,0.80691,2477.8,2477.7,0.80692]
[1747539318144,9.23241,2477.9,2477.8,0.80691]
[1747539319252,12.29041,2477.9,2477.8,0.80691]
[1747539319650,0.80692,2477.8,2477.7,0.80691]
[1747539320641,4.52989,2478.2,2477.5,2.01752]
[1747539320642,5.7207,2478.2,2477.5,2.01752]
[1747539320846,0.80681,2478.1,2478.0,0.80683]
[1747539321047,0.80677,2478.3,2477.6,10.01318031]
[1747539321644,3.2078,2478.5,2478.3,0.80674]
[1747539321847,8.438,2478.6,2478.5,0.80668]
[1747539322040,0.80667,2478.6,2478.5,0.80666]
[1747539322243,3.86467,2478.6,2478.5,0.80666]
[1747539322751,0.80672,2478.4,2478.3,0.80672]
[1747539322942,3.86466,2478.6,2478.5,0.80668]
[1747539323146,8.1627,2478.8,2478.2,5.8468]
[1747539323450,0.8067,2478.5,2478.4,0.80671]
[1747539324651,0.80668,2478.5,2478.4,0.80669]
[1747539324851,0.80666,2478.6,2478.4,0.80669]
[1747539325358,0.80668,2478.5,2478.4,0.80669]
[1747539325652,0.80673,2478.4,2478.3,0.80674]
[1747539326043,0.80673,2478.4,2478.3,3.53574]
[1747539326840,0.80666,2478.6,2478.5,0.80667]
[1747539327345,3.86466,2478.6,2478.3,2.729]
[1747539327540,3.058,2478.6,2478.5,0.80668]
[1747539327745,3.058,2478.6,2478.5,4.01448]
[1747539328150,4.01436,2478.9,2478.8,0.80658]
[1747539328354,3.2078,2478.9,2478.8,0.80658]
[1747539328548,7.7264,2479.3,2478.8,5.22422]
[1747539328746,7.7264,2479.3,2478.9,2.7551]
[1747539329052,5.92173,2479.3,2479.2,0.80645]
[1747539329250,3.42043,2479.3,2479.2,0.80645]
[1747539329646,0.80652,2479.0,2478.9,5.425]
[1747539329852,0.80652,2479.0,2478.9,6.23153]
[1747539330051,0.80651,2479.1,2479.0,0.80651]
[1747539330853,0.80652,2479.0,2478.9,2.6699]
[1747539331056,0.80651,2479.1,2479.0,0.80651]
[1747539331448,0.8065,2479.1,2478.9,3.47642]
[1747539331649,0.80648,2479.2,2479.0,0.80652]
[1747539332155,3.42043,2479.3,2479.2,0.80645]
[1747539332352,0.80637,2479.5,2479.4,0.80637]
[1747539332653,0.8064,2479.4,2479.3,0.80642]
[1747539334547,0.80643,2479.3,2479.2,0.80644]
[1747539334858,2.01581,2479.6,2479.0,13.02806199]
[1747539334859,0.80648,2479.1,2479.0,5.856]
[1747539335452,6.17298,2479.1,2479.0,5.856]
[1747539335759,8.69108,2479.1,2479.0,5.856]
[1747539336153,11.74908,2479.1,2479.0,5.856]
[1747539337161,0.80658,2478.8,2478.7,0.8066]
[1747539337659,3.058,2479.1,2479.0,0.80652]
[1747539339060,3.86448,2479.1,2479.0,0.80652]
[1747539339260,3.2078,2479.2,2478.8,5.3688]
[1747539339461,0.80655,2479.0,2478.8,3.52366]
[1747539339662,2.5115,2479.1,2478.5,9.0638]
[1747539339862,0.80657,2478.9,2478.5,9.0638]
[1747539340060,2.5115,2479.1,2478.5,11.08046]
[1747539340362,0.80656,2478.9,2478.8,0.80656]
[1747539340563,0.80652,2479.0,2478.9,0.80653]
[1747539340864,2.5115,2479.1,2478.6,2.7171]
[1747539341162,3.058,2479.0,2478.5,3.2078]
[1747539341365,0.80662,2478.7,2478.6,0.80663]
[1747539341563,2.5115,2478.9,2478.4,5.856]
[1747539341765,3.31807,2478.9,2478.8,0.80658]
[1747539342058,2.5115,2478.9,2478.8,0.80658]
[1747539343060,5.5695,2478.9,2478.8,0.80658]
[1747539343266,6.37605,2478.9,2478.8,0.80658]
[1747539343767,0.80659,2478.8,2478.7,0.80659]
[1747539343966,3.86457,2478.9,2478.8,0.80658]
[1747539345167,3.058,2478.9,2478.8,0.80658]
[1747539346062,3.058,2478.9,2478.8,3.30668]
[1747539346370,3.35574,2479.0,2478.9,0.80655]
[1747539346566,3.35574,2479.0,2478.9,3.30665]
[1747539346763,3.35574,2479.0,2478.9,2.5001]
[1747539347271,6.41374,2479.0,2478.9,2.5001]
[1747539347765,6.41374,2479.0,2478.9,3.30665]
[1747539349572,3.058,2479.0,2478.9,3.30665]
[1747539350171,2.7325,2479.2,2478.7,3.2078]
[1747539350471,2.7325,2479.2,2478.8,2.5714]
[1747539350472,3.53905,2478.9,2478.8,2.5714]
[1747539352173,3.53905,2478.9,2478.8,9.23398]
[1747539352368,0.80655,2478.9,2478.8,9.23398]
[1747539353775,0.80655,2478.9,2478.8,10.59342705]
[1747539354271,0.80654,2479.0,2478.9,0.80651]
[1747539354472,0.80654,2479.0,2478.9,3.29282219]
[1747539354675,0.80654,2479.0,2478.9,2.6133]
[1747539355075,0.80654,2479.0,2478.9,3.97274705]
[1747539355375,0.80654,2479.0,2478.9,4.77929705]
[1747539356379,0.80651,2479.1,2479.0,0.80651]
[1747539356571,0.80651,2479.1,2479.0,3.46981]
[1747539357178,3.86451,2479.1,2479.0,3.46981]
[1747539358074,3.86451,2479.1,2479.0,4.82925705]
[1747539358677,3.86451,2479.1,2479.0,4.02274705]
[1747539361773,3.86451,2479.1,2479.0,4.82926705]
[1747539361774,3.058,2479.1,2479.0,4.82926705]
[1747539362182,0.80647,2479.2,2479.1,0.80648]
[1747539363278,0.80647,2479.2,2479.1,2.16592705]
[1747539363981,0.80647,2479.2,2479.1,1.35944705]
[1747539364678,3.46017,2479.2,2479.1,1.35944705]
[1747539365185,6.51817,2479.2,2479.1,1.35944705]
[1747539365684,6.51817,2479.2,2479.1,1.35157629]
[1747539370782,6.51817,2479.2,2478.7,4.75669814]
[1747539370997,0.8065,2479.1,2479.0,0.80649]
[1747539371286,6.51817,2479.2,2479.1,0.80648]
[1747539371689,0.80649,2479.1,2479.0,0.8065]
[1747539371993,6.51817,2479.2,2479.1,0.80648]
[1747539372189,3.86447,2479.2,2479.1,0.80648]
[1747539374292,0.80647,2479.2,2479.1,0.80648]
[1747539374489,4.01424,2479.3,2479.1,0.80648]
[1747539374690,4.01424,2479.3,2479.2,2.5822]
[1747539375191,7.07224,2479.3,2479.2,2.5822]
[1747539375795,7.07224,2479.3,2479.2,3.38865]
[1747539376591,7.07222,2479.3,2479.2,3.38865]
[1747539376983,7.07222,2479.3,2479.2,2.5822]
[1747539377384,7.07222,2479.3,2479.2,3.38865]
[1747539378087,7.07222,2479.3,2479.2,2.5822]
[1747539378389,9.75282,2479.3,2479.2,2.5812]
[1747539378578,9.75282,2479.3,2479.2,1.3601619]
[1747539378993,9.75282,2479.3,2479.2,1.3591619]
[1747539379584,9.75282,2479.3,2479.2,1.3581619]
[1747539380492,0.80645,2479.2,2479.1,0.80648]
[1747539381092,8.9464,2479.3,2479.0,2.01088814]
[1747539381293,6.57498,2479.2,2479.0,2.01088814]
[1747539381794,6.57498,2479.2,2479.1,2.6132]
[1747539382197,6.57498,2479.2,2479.1,3.41968]
[1747539382387,6.57498,2479.2,2479.1,2.6132]
[1747539382591,6.57498,2479.2,2479.0,2.01088814]
[1747539382592,0.80648,2479.1,2479.0,2.01088814]
[1747539382793,0.80648,2479.1,2479.0,0.80649]
[1747539382794,3.57038,2479.1,2479.0,0.80649]
[1747539382994,2.7639,2479.1,2479.0,0.80649]
[1747539383194,3.57038,2479.1,2479.0,3.42609]
[1747539383598,2.7639,2479.1,2479.0,3.42609]
[1747539383793,0.80647,2479.2,2479.1,0.80648]
[1747539384194,3.86447,2479.2,2479.1,0.80648]
[1747539385300,0.80648,2479.1,2479.0,3.42609]
[1747539385495,3.86447,2479.2,2479.1,0.80648]
[1747539388108,3.058,2479.2,2479.1,0.80648]
[1747539389211,0.80643,2479.3,2479.0,2.6196]
[1747539389212,0.80643,2479.3,2479.2,0.80645]
[1747539391113,3.86443,2479.3,2479.2,0.80645]
[1747539391610,1.3367155,2479.7,2479.6,0.80632]
[1747539392109,5.2010155,2479.7,2479.6,0.80632]
[1747539392614,5.2010155,2479.7,2479.6,2.16650561]
[1747539394319,4.3947155,2479.7,2479.6,2.16650561]
[1747539394518,5.2010055,2479.7,2479.6,2.16650561]
[1747539395009,5.2010055,2479.7,2479.6,0.80632]
[1747539395210,3.86429,2479.7,2479.6,0.80632]
[1747539395815,3.058,2479.7,2479.6,0.80632]
[1747539396120,3.86429,2479.7,2479.6,0.80632]
[1747539396719,3.058,2479.7,2479.6,0.80632]
[1747539397014,3.058,2479.7,2479.3,18.33099814]
[1747539397214,0.80638,2479.5,2479.4,0.80638]
[1747539397414,0.80638,2479.5,2479.4,3.50158]
[1747539397918,6.13635,2479.6,2479.5,0.80635]
[1747539398112,3.52955,2479.6,2479.5,3.51255]
[1747539398918,3.52955,2479.6,2479.5,4.87054489]
[1747539399109,6.58755,2479.6,2479.5,4.87054489]
[1747539399309,6.58755,2479.6,2479.5,1.35799489]
[1747539400220,9.26795,2479.6,2479.5,1.35799489]
[1747539400718,0.80639,2479.4,2479.3,9.0638]
[1747539401415,6.53549,2479.4,2479.3,9.0638]
[1747539401923,6.53549,2479.4,2479.3,11.5913]
[1747539402422,6.53549,2479.4,2479.3,12.39772]
[1747539403124,6.53549,2479.4,2479.3,6.54172]
[1747539405221,3.058,2479.4,2479.3,6.54172]
[1747539406118,2.7148,2479.5,2479.4,0.80639]
[1747539406319,2.7232,2479.6,2479.5,0.80635]
[1747539407224,0.8063,2479.7,2479.6,0.80632]
[1747539407425,2.6195,2479.8,2479.4,2.7009]
[1747539407622,0.80629,2479.7,2479.6,0.8063]
[1747539407822,3.42578,2479.8,2479.6,0.8063]
[1747539408126,3.42578,2479.8,2479.7,0.80629]
[1747539408326,2.6195,2479.8,2479.7,0.80629]
[1747539408831,3.52144,2479.9,2479.8,0.80626]
[1747539409214,0.80626,2479.8,2479.7,0.80627]
[1747539410127,3.86426,2479.8,2479.7,0.80627]
[1747539410426,3.058,2479.8,2479.7,0.80627]
[1747539410628,3.058,2479.8,2479.7,1.1519561]
[1747539411226,3.2078,2480.0,2479.9,0.80622]
[1747539411428,2.5602,2480.2,2480.1,0.80616]
[1747539411729,1.3367155,2480.3,2480.2,0.80613]
[1747539412227,4.3947155,2480.3,2480.2,0.80613]
[1747539413927,4.3947155,2480.3,2480.2,0.80513]
[1747539414129,2.1428055,2480.3,2480.1,2.6985]
[1747539414425,0.80613,2480.2,2480.1,3.50364]
[1747539414626,1.3367155,2480.3,2480.2,0.80613]
[1747539415420,3.55077,2480.4,2480.3,0.80609]
[1747539416128,6.60877,2480.4,2480.3,0.80609]
[1747539417030,5.8027,2480.4,2480.1,8.5535]
[1747539417230,0.80613,2480.2,2480.1,5.856]
[1747539417537,4.01393,2480.2,2480.1,5.856]
[1747539418023,6.63463,2480.2,2480.1,5.856]
[1747539418227,6.63463,2480.2,2479.7,2.01067814]
[1747539418228,0.80624,2479.9,2479.7,0.80628]
[1747539418730,0.89842003,2479.9,2479.7,0.80628]
[1747539419229,3.95642003,2479.9,2479.7,0.80628]
[1747539419745,3.058,2479.9,2479.6,0.8063]
[1747539419930,7.7266,2479.8,2479.6,0.8063]
[1747539420229,10.7846,2479.8,2479.6,0.8063]
[1747539420433,11.59087,2479.8,2479.5,9.0638]
[1747539420731,0.80629,2479.7,2479.6,1.15141008]
[1747539420937,3.36449,2479.7,2479.6,1.15141008]
[1747539421137,6.42249,2479.7,2479.6,1.15141008]
[1747539421428,6.42249,2479.7,2479.6,2.50376855]
[1747539421629,6.42249,2479.7,2479.6,2.50380807]
[1747539421933,3.058,2479.7,2479.6,2.50380807]
[1747539423120,3.058,2479.7,2479.6,2.50376639]
[1747539423331,0.80625,2479.9,2479.8,0.80626]
[1747539424135,3.86425,2479.9,2479.8,0.80626]
[1747539424733,3.95643003,2479.9,2479.8,0.80626]
[1747539425035,0.80626,2479.8,2479.7,5.856]
[1747539425236,3.15018003,2479.9,2479.8,0.80626]
[1747539425830,3.058,2479.9,2479.8,0.80626]
[1747539426131,3.058,2479.9,2479.7,5.856]
[1747539426333,3.50016,2479.8,2479.7,5.856]
[1747539426535,3.50016,2479.8,2479.7,6.66229]
[1747539427029,2.6939,2479.8,2479.7,7.0074078]
[1747539427232,5.7519,2479.8,2479.7,1.15140608]
[1747539427433,5.7519,2479.8,2479.7,0.80629]
[1747539427637,3.058,2479.8,2479.7,0.80629]
[1747539427939,3.058,2479.8,2479.7,1.15140696]
[1747539428236,3.058,2479.8,2479.7,1.15138143]
[1747539430037,3.058,2479.8,2479.7,1.15141206]
[1747539431136,3.37661,2480.3,2480.2,0.80613]
[1747539431938,5.169,2480.4,2480.3,0.80609]
[1747539432241,9.03306,2480.4,2480.3,0.80609]
[1747539432932,8.227,2480.4,2480.3,0.80609]
[1747539434139,8.227,2480.4,2480.2,2.5866]
[1747539434343,10.9722,2480.4,2480.2,2.5866]
[1747539434638,0.80613,2480.2,2480.1,5.856]
[1747539434846,0.80613,2480.2,2480.1,6.20121646]
[1747539435238,3.86413,2480.2,2480.1,8.3605354]
[1747539435644,3.058,2480.2,2480.1,8.3605354]
[1747539436146,3.86413,2480.2,2480.1,7.5543754]
[1747539436437,3.86413,2480.2,2479.9,1.20439814]
[1747539436438,0.80619,2480.0,2479.9,1.20439814]
[1747539437147,3.86419,2480.0,2479.9,1.20439814]
[1747539437843,3.058,2480.0,2479.6,3.2078]
[1747539438044,2.6705,2479.9,2479.8,0.80624]
[1747539438349,3.86421,2480.0,2479.9,0.80622]
[1747539438350,3.058,2480.0,2479.9,0.80622]
[1747539438547,3.86419,2480.0,2479.9,0.80622]
[1747539439746,6.48309,2480.0,2479.9,0.80622]
[1747539439943,5.76908003,2480.0,2479.9,0.80622]
[1747539440248,8.43958003,2480.0,2479.9,1.1519]
[1747539440948,8.3474,2480.0,2479.9,1.15191254]
[1747539441148,9.15359,2480.0,2479.9,1.15191254]
[1747539441547,9.15359,2480.0,2479.9,0.34569254]
[1747539442047,9.24577003,2480.0,2479.9,0.34569254]
[1747539442746,8.43958003,2480.0,2479.9,1.15192089]
[1747539442949,9.24579003,2480.0,2479.9,0.34570089]
[1747539443445,9.24579003,2480.0,2479.9,1.15192089]
[1747539443648,9.24579003,2480.0,2479.9,0.34570089]
[1747539444550,0.80622,2479.9,2479.8,0.80624]
[1747539444750,0.80622,2479.9,2479.8,1.15197196]
[1747539445149,3.86422,2479.9,2479.8,1.15197196]
[1747539445552,3.058,2479.9,2479.8,1.15197196]
[1747539445954,3.86422,2479.9,2479.8,1.15197196]
[1747539446354,3.058,2479.9,2479.8,1.15197196]
[1747539446556,3.058,2479.9,2479.8,1.15201068]
[1747539447053,3.86422,2479.9,2479.8,1.15201068]
[1747539448150,3.86422,2479.9,2479.8,1.15203068]
[1747539448352,3.86422,2479.9,2479.8,1.15206212]
[1747539448857,3.86422,2479.9,2479.8,2.49733431]
[1747539449054,6.56562,2479.9,2479.8,2.49733431]
[1747539450251,6.56562,2479.9,2479.8,1.69107431]
[1747539450755,6.56562,2479.9,2479.8,1.34527219]
[1747539450948,6.56562,2479.9,2479.6,4.41219814]
[1747539450949,0.80629,2479.7,2479.6,3.2078]
[1747539451149,3.86429,2479.7,2479.6,3.55364109]
[1747539451856,3.86429,2479.7,2479.6,3.55361552]
[1747539452058,3.058,2479.7,2479.6,5.70531119]
[1747539452253,2.7014,2479.9,2479.8,0.80626]
[1747539452554,2.7014,2479.9,2479.8,1.15207552]
[1747539452959,3.4251,2480.0,2479.9,0.80622]
[1747539453257,3.86423,2479.9,2479.8,0.80624]
[1747539453452,3.86423,2479.9,2479.8,1.15202416]
[1747539453860,3.86423,2479.9,2479.8,1.15202432]
[1747539454063,3.058,2479.9,2479.8,1.15202432]
[1747539454359,3.86422,2479.9,2479.8,2.49726034]
[1747539454559,3.86422,2479.9,2479.8,1.69102034]
[1747539454856,6.42652,2479.9,2479.8,1.69102034]
[1747539455659,6.42652,2479.9,2479.8,1.34523602]
[1747539456154,10.84368,2479.9,2479.4,11.08707814]
[1747539456359,0.80632,2479.6,2479.5,3.00387981]
[1747539457054,3.86432,2479.6,2479.5,3.81022981]
[1747539457265,6.50212,2479.6,2479.5,3.00387981]
[1747539457457,5.6958,2479.6,2479.5,3.81019123]
[1747539457653,3.058,2479.6,2479.5,5.15527604]
[1747539458060,0.80626,2479.8,2479.7,0.80626]
[1747539458555,5.96965,2479.9,2479.8,0.80626]
[1747539458761,0.8063,2479.7,2479.6,0.80629]
[1747539458962,0.8063,2479.7,2479.6,1.15199978]
[1747539459264,3.8643,2479.7,2479.6,1.15198281]
[1747539459463,3.058,2479.7,2479.6,1.15201281]
[1747539459662,3.058,2479.7,2479.6,1.15201253]
[1747539459962,3.058,2479.7,2479.6,2.49709734]
[1747539461055,3.058,2479.7,2479.6,2.49708015]
[1747539461263,0.80628,2479.8,2479.7,0.80629]
[1747539461561,0.80628,2479.8,2479.7,3.38899]
[1747539461861,0.80628,2479.8,2479.7,3.38799]
[1747539462064,3.86428,2479.8,2479.7,2.5827]
[1747539462461,6.64078,2479.8,2479.7,2.5817]
[1747539462655,0.80634,2479.6,2479.5,0.80634]
[1747539462854,0.80634,2479.6,2479.5,1.15203157]
[1747539463564,0.8063,2479.7,2479.6,0.8063]
[1747539463862,0.8063,2479.7,2479.6,0.34569157]
[1747539464164,3.8643,2479.7,2479.6,0.34569157]
[1747539464566,3.8643,2479.7,2479.6,1.69121594]
[1747539464769,3.8643,2479.7,2479.6,1.69138374]
[1747539465066,3.8643,2479.7,2479.6,1.34552437]
[1747539465767,8.8643,2479.7,2479.6,1.34552437]
[1747539466065,0.80639,2479.4,2479.3,0.80641]
[1747539466257,0.80639,2479.4,2479.3,3.72740854]
[1747539466453,0.80638,2479.5,2479.4,0.80638]
[1747539466657,0.80638,2479.5,2479.4,1.15237854]
[1747539466658,6.10668,2479.5,2479.4,1.15237854]
[1747539466967,2.7622,2479.5,2479.4,1.15237854]
[1747539467169,3.058,2479.5,2479.4,0.34599854]
[1747539467466,3.058,2479.5,2479.4,1.15238854]
[1747539467667,3.058,2479.5,2479.4,2.49769875]
[1747539468168,0.80631,2479.7,2479.4,1.69130875]
[1747539468365,0.80632,2479.6,2479.5,3.56824]
[1747539469168,0.80632,2479.6,2479.5,2.7619]
[1747539469472,0.80632,2479.6,2479.3,3.2078]
[1747539469473,0.80639,2479.4,2479.3,0.80641]
[1747539469667,0.80639,2479.4,2479.3,1.15228271]
[1747539470170,3.86439,2479.4,2479.3,1.15228598]
[1747539470468,9.11409,2479.4,2479.3,0.34587598]
[1747539470771,9.11409,2479.4,2479.3,0.34583567]
[1747539471371,9.11409,2479.4,2479.3,1.69080337]
[1747539471968,9.11409,2479.4,2479.3,2.49722337]
[1747539472170,9.11409,2479.4,2479.3,2.49719885]
[1747539474170,8.3077,2479.4,2479.3,2.49719885]
[1747539474377,3.058,2479.4,2479.3,2.49719885]
[1747539474772,3.058,2479.4,2479.3,1.15223115]
[1747539475270,3.54101,2479.7,2479.6,0.80632]
[1747539476171,0.80632,2479.6,2479.5,3.33074]
[1747539476366,0.80632,2479.6,2479.5,3.67655737]
[1747539476568,3.058,2479.7,2479.6,0.80632]
[1747539476769,3.058,2479.7,2479.6,3.41372]
[1747539477175,3.058,2479.7,2479.6,3.75956967]
[1747539477565,3.058,2479.7,2479.6,3.75956936]
[1747539478377,3.058,2479.7,2479.6,5.10470714]
[1747539479381,3.058,2479.7,2479.6,5.10477439]
[1747539480283,0.80623,2479.9,2479.8,0.80626]
[1747539480477,2.7347,2480.0,2479.9,0.80622]
[1747539480781,3.2078,2480.1,2480.0,0.80619]
[1747539480981,3.2078,2480.1,2480.0,1.15212684]
[1747539481169,4.0220155,2480.4,2480.3,0.80609]
[1747539481680,4.8280755,2480.4,2480.3,0.80609]
[1747539482081,7.8860755,2480.4,2480.3,0.80609]
[1747539482383,7.0800155,2480.4,2480.3,0.80609]
[1747539483487,4.3947155,2480.4,2480.3,1.15112866]
[1747539484387,1.3367155,2480.4,2480.3,1.15111918]
[1747539484581,1.3367155,2480.4,2480.3,1.15092175]
[1747539485087,1.3367155,2480.4,2480.3,2.49437122]
[1747539486080,1.3367155,2480.4,2480.3,2.49417551]
[1747539487593,7.79018437,2480.7,2480.6,0.806]
[1747539487594,5.3133,2480.7,2480.6,0.806]
[1747539488093,8.3713,2480.7,2480.6,0.806]
[1747539489195,9.17726,2480.7,2480.6,0.806]
[1747539491796,0.80602,2480.6,2480.5,0.80602]
[1747539491996,3.31982,2480.6,2480.5,0.80602]
[1747539492198,6.37781,2480.6,2480.5,0.80603]
[1747539493297,5.5718,2480.6,2480.3,5.7148]
[1747539493598,5.5718,2480.6,2480.5,0.80603]
[1747539493998,5.5718,2480.6,2480.5,0.80503]
[1747539494398,0.80603,2480.5,2480.3,5.7128]
[1747539494594,6.37782,2480.6,2480.4,0.80606]
[1747539494901,5.5718,2480.6,2480.5,0.80603]
[1747539495199,2.7344,2480.7,2480.6,0.806]
[1747539495602,3.54036,2480.7,2480.5,0.80601]
[1747539495995,6.28176,2480.7,2480.6,2.6907]
[1747539496297,8.5338,2480.7,2480.6,3.4967]
[1747539498101,8.5338,2480.7,2480.3,5.7128]
[1747539498302,0.80602,2480.6,2480.4,0.80606]
[1747539498491,3.47973,2480.5,2480.4,3.36836]
[1747539498691,3.47973,2480.5,2480.4,2.5623]
[1747539498903,2.6737,2480.5,2480.4,3.36836]
[1747539499092,5.7317,2480.5,2480.4,3.36836]
[1747539499299,6.53773,2480.5,2480.4,2.5623]
[1747539499601,5.7317,2480.5,2480.4,3.36836]
[1747539499796,6.53773,2480.5,2480.4,2.5623]
[1747539500198,6.53773,2480.5,2480.3,4.01389]
[1747539500703,0.80606,2480.4,2480.3,3.2078]
[1747539500896,5.8815,2480.4,2480.1,2.5954]
[1747539501197,2.6392,2480.3,2480.1,5.1577]
[1747539501398,8.57841,2480.3,2480.1,5.1577]
[1747539501898,7.7723,2480.3,2479.9,7.01119814]
[1747539502092,0.80614,2480.2,2479.9,9.74509814]
[1747539502296,2.5135,2480.1,2480.0,0.80619]
[1747539502704,0.80619,2480.0,2479.9,4.41219814]
[1747539502907,2.5135,2480.1,2479.9,2.01060814]
[1747539503106,3.058,2480.0,2479.9,4.74450814]
[1747539503406,3.058,2480.0,2479.9,3.54011]
[1747539503603,3.058,2480.0,2479.9,2.7339]
[1747539503799,3.058,2480.0,2479.9,3.54012]
[1747539504594,3.058,2480.0,2479.9,2.7339]
[1747539504794,3.058,2480.0,2479.7,3.38338]
[1747539505101,6.02894,2479.9,2479.7,3.38339]
[1747539505702,0.80627,2479.8,2479.6,7.29761]
[1747539506010,3.41687,2479.8,2479.6,7.29761]
[1747539506200,6.15037,2479.8,2479.6,7.29761]
[1747539506708,6.15037,2479.8,2479.6,6.4913]
[1747539506901,0.80629,2479.7,2479.5,5.7428]
[1747539507099,2.6106,2479.6,2479.5,5.7428]
[1747539507409,3.41692,2479.6,2479.5,5.7428]
[1747539507614,3.41692,2479.6,2479.5,8.3178]
[1747539507806,2.6106,2479.6,2479.5,8.3178]
[1747539509404,3.058,2479.7,2479.6,0.80632]
[1747539510109,2.6121,2479.9,2479.8,0.80626]
[1747539510704,2.6121,2479.9,2479.8,3.58446]
[1747539510902,3.41832,2479.9,2479.8,2.7782]
[1747539511102,5.6701,2479.9,2479.8,3.58446]
[1747539511305,0.80626,2479.8,2479.5,6.54913]
[1747539511601,0.80629,2479.7,2479.5,9.32733]
[1747539511802,3.38909,2479.7,2479.5,9.32733]
[1747539512111,3.38909,2479.7,2479.5,8.521]
[1747539512704,2.5828,2479.7,2479.5,8.521]
[1747539513112,6.44711,2479.7,2479.5,9.32733]
[1747539513410,5.6408,2479.7,2479.5,9.32733]
[1747539514106,9.1653,2479.7,2479.5,9.32733]
[1747539514311,9.1653,2479.7,2479.5,8.521]
[1747539514312,0.80632,2479.6,2479.5,8.521]
[1747539514509,3.52452,2479.6,2479.5,8.521]
[1747539514910,2.7182,2479.6,2479.5,9.32735]
[1747539515112,3.058,2479.7,2479.6,0.80632]
[1747539515312,3.41835,2479.9,2479.7,0.80628]
[1747539515612,2.6121,2479.9,2479.8,0.80626]
[1747539515810,2.6121,2479.9,2479.7,0.80627]
[1747539516004,2.6121,2479.9,2479.7,3.40957]
[1747539516414,2.6121,2479.9,2479.8,2.6033]
[1747539516617,3.41832,2479.9,2479.8,2.6033]
[1747539516913,2.6121,2479.9,2479.8,3.40956]
[1747539517210,6.47632,2479.9,2479.8,2.6033]
[1747539517411,5.6701,2479.9,2479.8,2.6033]
[1747539517805,6.47632,2479.9,2479.8,2.6033]
[1747539518104,9.08602,2479.9,2479.8,2.6033]
[1747539519817,3.058,2479.9,2479.8,3.40956]
[1747539520113,3.2078,2480.1,2479.9,0.8062]
[1747539520414,3.2078,2480.1,2480.0,7.9579]
[1747539520709,5.4236,2480.2,2480.0,7.9579]
[1747539520916,5.9316,2480.4,2480.0,7.9579]
[1747539521116,3.2078,2480.4,2480.0,7.9579]
[1747539521306,3.2078,2480.4,2480.3,0.80609]
[1747539522211,6.2658,2480.4,2480.3,0.80609]
[1747539522516,6.2658,2480.4,2480.0,7.9579]
[1747539523217,3.2078,2480.4,2480.0,7.9579]
[1747539524016,4.01387,2480.4,2480.2,0.80613]
[1747539524218,4.01387,2480.4,2480.3,2.5847]
[1747539525314,7.07187,2480.4,2480.3,2.5847]
[1747539526515,0.80613,2480.2,2480.0,6.07358]
[1747539526717,0.80613,2480.2,2480.1,2.6101]
[1747539528209,3.57272,2480.3,2480.1,3.41626]
[1747539528512,3.57272,2480.3,2480.1,2.6101]
[1747539528820,3.57272,2480.3,2480.1,3.41625]
[1747539529019,2.7666,2480.3,2480.2,3.43753]
[1747539529213,4.01388,2480.4,2480.2,3.43753]
[1747539529411,4.01388,2480.4,2480.3,2.6314]
[1747539530210,7.07188,2480.4,2480.3,2.6314]
[1747539532918,6.2658,2480.4,2480.0,5.2674]
[1747539533111,0.80615,2480.2,2480.1,2.9194196]
[1747539533619,0.80615,2480.2,2480.1,2.91940642]
[1747539533820,0.80615,2480.2,2480.1,2.5744]
[1747539534021,5.95705,2480.2,2480.1,2.5744]
[1747539534318,9.01505,2480.2,2480.1,2.5744]